Workbook

Sheet Sheet1
A1: INSTRUCTIONS: Use this form when a single information collection document involves multiple reporting and recordkeeping requirements. The totals of the figures in cols. should be entered in item 13 of OMB-83-I: cols. (D) &/or (I) = 13a (respondent is only counted once); cols. F & I = 13b; cols. H & K = 13c. (F)Total/(D)Total = (E)Average (H)Total/(F)Total = (G)Average (K)Total/(I)Total = (J)Average NOTE: The columns will calculate automatically. If Col. E's response is something other than annually, i.e., 1/6 years, list as "1/6" & decimal will display. | I1: TITLE OF INFORMATION COLLECTION DOCUMENT | O1: OMB NO. 0578-00031
I3: Advancing Markets for Producers
O4: DATE PREPARED
O7: 2025-12-10
A10: IDENTIFICATION OF REPORTING OR RECORDKEEPING REQUIREMENT | H10: ANNUAL BURDEN
H12: REPORTS | N12: RECORDS | Q12: RESPONDENT COST | S12: Revised Annual Burden hours
L14: TOTAL BURDEN HOURS | P14: TOTAL | S14: Previously Approved Burden Hours | T14: Difference Due to Adjustments | U14: Differences Due to Program Changes
G15: FORMS NO (S) | H15: NO. OF | I15: NO OF | J15: TOTAL ANNUAL | K15: HOURS | L15: (Col. F x G) | N15: NO. OF | O15: ANNUAL | P15: RECORD- | Q15: COST | R15: TOTAL
A16: SECTION OF | B16: DESCRIPTION | G16: (If "none" | H16: RESPONDENTS | I16: RESPONSES | J16: RESPONSES | K16: PER | L16: (H) | N16: RECORD- | O16: HOURS PER | P16: KEEPING HOURS | Q16: PER | R16: COST
A17: REGS. | G17: so state) | I17: PER | J17: (Col. D x E) | K17: RESPONSE | M17: NON-EXEMPT | N17: KEEPERS | O17: RECORD- | P17: (Col. I x J) | Q17: HOUR | R17: (Col. H x L)
I18: RESPONDENT | L18: EXEMPT | O18: KEEPER
A19: (A) | B19: (B) | G19: (C) | H19: (D) | I19: (E) | J19: (F) | K19: (G) | N19: (I) | O19: (J) | P19: (K) | Q19: (L) | R19: (M)
B20: Progress Reports | G20: None | H20: 125 | I20: 2 | J20: =SUM(H20*I20) -> 250 | K20: 17 | M20: =SUM(J20*K20) -> 4250 | Q20: 56.27 | R20: =SUM(M20*Q20) -> 239147.5 | S20: 1870 | U20: =M20-S20 -> 2380
J21: =SUM(H21*I21) -> 0
B22: Request for Advance or Reimbursement (OMB # 4040-0012) | G22: SF-270 | H22: 40 | I22: 1 | J22: 40 | K22: 1 | L22: =K22*J22 -> 40 | S22: 55 | U22: =L22-S22 -> -15
B23: Federal Financial Report** (OMB # 4040-0014) | G23: SF-425/SF-425A | H23: 125 | I23: 2 | J23: 250 | K23: 4 | L23: =K23*J23 -> 1000 | S23: 220 | U23: =L23-S23 -> 780
B24: Compliance and Environmental Worksheets* | H24: 75 | I24: 20 | J24: 1500 | K24: 4 | L24: =K24*J24 -> 6000 | S24: 40000 | U24: -34000
B25: *Including, but not limited to: the form AD-1026-Highly Erodible Land Conservation (HELC) and Wetland Conservation (WC) Certification, and the form CPA-052-Environmental Evaluation Worksheet.
B26: **Collection is included in Progress Reports
B27: Project Summary | G27: None | H27: 0 | M27: 0 | S27: 5000 | U27: =M27-S27 -> -5000
B28: Resumes | G28: None | H28: 0 | M28: 0 | S28: 5000 | U28: =M28-S28 -> -5000
B29: Support Letters | G29: None | H29: 0 | M29: 0 | S29: 2500 | U29: =M29-S29 -> -2500
B30: Application for Federal Assistance** (OMB #4040-0020) | G30: SF-424 | H30: 0 | L30: 0 | S30: 8000 | U30: =L30-S30 -> -8000
B31: Budget Information for Non-Construction** (4040-0006) | G31: SF-424A | H31: 0 | L31: 0 | S31: 500 | U31: -500
B32: SUBTOTAL | J32: =SUM(J20:J20) -> 250 | L32: =SUM(L20:L26) -> 7040 | M32: =SUM(M20:M21) -> 4250 | P32: =SUM(P20:P31) -> 0 | R32: =SUM(R20:R31) -> 239147.5 | S32: =SUM(S20:S31) -> 63145 | T32: =SUM(T20:T31) -> 0 | U32: =SUM(U20:U31) -> -51855
B33: TOTAL OF ALL PAGES | J33: =SUM(J32) -> 250 | L33: =SUM(L32) -> 7040 | M33: =M32 -> 4250 | P33: =SUM(P32) -> 0 | R33: =SUM(R32) -> 239147.5
A34: TOTAL - COLUMNS "F" AND "I" = OMB 83-I, 13b; COLUMNS "H" AND "K" = OMB 83-I, 13c | J34: =SUM(J33+N33) -> 250 | M34: =SUM(M33+P33) -> 4250
